Cogmind - Beta 15 @@@ ROGUE MODE // 2025.08.19 @ 22:08:08 Player: SnailSD Result: Destroyed by A-27 Freighter with PD Laser Performance ------------- Evolutions (6) 3000 Regions Visited (11) 2200 Robots Destroyed (116) 580 Value Destroyed (3174) 3174 Prototype IDs (41) 820 Alien Tech Used (0) 0 Bonus (121) 121 TOTAL SCORE: 9895 Bonus ------- Follower Combat Kills 25 Aligned with FarCom 300 Friendly Fire -204 Cogmind --------- Core Integrity 0/1150 Matter 300/300 Energy 98/100 System Corruption 1% Temperature Cool (6) Movement Core (50) Location -4/Factory Parts ------- > --- POWER (2) -------- (None) > --- PROPULSION (5) --- (None) > --- UTILITY (10) ----- (None) > --- WEAPON (2) ------- (None) > --- INVENTORY (5) ---- Micro Nuclear Core Large Matter Pod (150) Beam Rifle Lance Peak State ------------ > --- POWER ------------ Light Nuclear Core > --- PROPULSION ------- Improved Flight Unit Improved VTOL Module Improved VTOL Module Cooled VTOL Module > --- UTILITY ---------- Transport Network Coupler Modified TNC Hacking Suite System Shield System Shield > --- WEAPON ----------- Improved Grenade Launcher Scythe > --- INVENTORY -------- Micro Nuclear Core Large Matter Pod Large Matter Pod Beam Rifle [Rating: 41] Favorites ----------- Power Heavy Ion Engine Engine Heavy Ion Engine Power Core Light Nuclear Core Propulsion Light Treads Treads Light Treads Flight Unit Improved VTOL Module Utility Transport Network Coupler Device Improved Terrain Scanner Storage Large Storage Unit Processor Transport Network Coupler Hackware System Shield Protection Light Armor Plating Weapon Heavy Assault Rifle Energy Gun Improved EM Shotgun Energy Cannon Particle Cannon Ballistic Gun Heavy Assault Rifle Launcher Improved Grenade Launcher Impact Weapon Mace Slashing Weapon Scythe Piercing Weapon Lance Special Melee Weapon Datajack Build | -11 -10 -10 -9 -9 -9 -8 -8 -7 -6 -5 -4 ------- Run | Yrd Mat Min Mat Min Exi Min Mat Fac Fac Fac Fac Slots Evolved 12 | . . . 2 . . . 2 2 2 2 2 Power 1 | . . . . . . . . . . 1 . Propulsion 3 | . . . . . . . 1 2 . . . Utility 8 | . . . 2 . . . 1 . 2 1 2 Weapon . | . . . . . . . . . . . . Parts Attached 69 | 7 5 2 14 2 2 3 18 6 1 4 5 Power 8 | 1 . . 3 . . 1 . 1 . . 2 Engine 3 | 1 . . 2 . . . . . . . . Core 5 | . . . 1 . . 1 . 1 . . 2 Reactor . | . . . . . . . . . . . . Propulsion 18 | 2 . . 3 1 . . 9 1 . 2 . Treads 12 | 2 . . 3 1 . . 6 . . . . Leg . | . . . . . . . . . . . . Wheel . | . . . . . . . . . . . . Hover . | . . . . . . . . . . . . Flight 6 | . . . . . . . 3 1 . 2 . Utility 20 | 2 4 . 3 . 1 1 4 2 1 1 1 Device 2 | 1 . . . . . 1 . . . . . Storage 4 | 1 2 . . . . . 1 . . . . Processor 2 | . . . 1 . 1 . . . . . . Hackware 7 | . . . . . . . 2 2 1 1 1 Protection 5 | . 2 . 2 . . . 1 . . . . Artifact . | . . . . . . . . . . . . Weapon 23 | 2 1 2 5 1 1 1 5 2 . 1 2 Energy Gun 4 | . . . 1 . . . 3 . . . . Energy Cannon 1 | . . . 1 . . . . . . . . Ballistic Gun 9 | 2 1 1 3 . . 1 1 . . . . Ballistic Cannon . | . . . . . . . . . . . . Launcher 3 | . . 1 . . . . 1 1 . . . Special Weapon . | . . . . . . . . . . . . Impact Weapon 1 | . . . . 1 . . . . . . . Slashing Weapon 3 | . . . . . . . . 1 . . 2 Piercing Weapon 1 | . . . . . . . . . . 1 . Special Melee Weapon 1 | . . . . . 1 . . . . . . Unidentified Prototypes 6 | . . . 2 . . . 2 1 . . 1 Parts Lost 38 | . 1 2 4 3 . 1 14 4 . 6 3 Power 5 | . . . 1 . . 1 1 1 . 1 . Propulsion 14 | . . 1 1 1 . . 5 1 . 3 2 Utility 10 | . 1 . 1 2 . . 4 . . 1 1 Weapon 9 | . . 1 1 . . . 4 2 . 1 . Highest Loss Streak 6 | . 1 1 2 2 . 1 6 3 . 4 2 To Critical Strikes . | . . . . . . . . . . . . Average Backups 10 | 4 13 14 14 14 14 13 13 3 4 4 4 Power 1 | . 1 2 1 1 2 1 2 . 1 1 1 Propulsion 2 | 2 3 3 3 4 3 3 3 . . . . Utility 3 | . 3 5 4 4 4 4 3 2 2 2 1 Weapon 3 | 1 3 3 4 4 5 4 3 . 1 1 1 Tool/Special . | . . . . . . . . . . . . Unused Backups 26 | . 9 . 7 1 . . 7 . . . 2 Power 3 | . . . 1 . . . 2 . . . . Propulsion 10 | . 4 . 2 1 . . 3 . . . . Utility 9 | . 4 . 2 . . . 1 . . . 2 Weapon 4 | . 1 . 2 . . . 1 . . . . Tool/Special . | . . . . . . . . . . . . Average Slot Usage (%) 81 | . 99 93 99 89 73 96 85 82 73 41 27 Engine 4 | . 14 14 5 11 11 . . . . . . Core 3 | . . . 5 . . 10 8 6 6 1 . Treads 16 | . 28 23 21 21 22 22 24 . . . . Flight 4 | . . . . . . . . 25 20 10 6 Device 1 | . 6 . . . . 8 2 . . . . Storage 7 | . 14 14 11 11 11 11 8 . . . . Processor 11 | . . . 10 11 15 22 18 15 13 11 6 Hackware 4 | . . . . . . . 3 20 26 12 8 Protection 6 | . 7 14 21 12 . . 1 . . . . Energy Gun 1 | . . . . . . . 5 3 . . . Ballistic Gun 13 | . 28 26 20 21 5 19 10 . . . . Peak Build Rating 41 | 7 8 8 18 16 18 25 35 41 37 37 34 Average Rating 20 | 5 7 7 16 15 14 23 29 36 37 24 21 On Entrance 18 | . 7 8 7 16 14 18 25 29 35 37 26 Naked Turns 39 | . . . . . . . . . . . 39 Heaviest Build 44 | 14 32 31 44 40 34 37 44 15 8 8 4 Greatest Support 84 | 40 40 40 43 43 43 43 84 20 15 15 8 Greatest Overweight (x) 1 | . . 1 1 1 . . 1 . . . 1 Average Overweight (x) . | . . . . . . . . . . . . Largest Inventory Capacity 15 | 8 15 15 15 15 15 15 15 5 5 5 5 Average Capacity 11 | 7 14 15 15 15 15 15 14 5 5 5 5 Most Carried 15 | 7 15 15 15 15 15 15 15 5 4 4 5 Average Carried 10 | 4 13 14 14 14 14 13 13 3 4 4 4 Final Capacity 15 | 8 15 15 15 15 15 15 5 5 5 5 5 Final Carried 15 | 7 15 14 15 14 15 15 1 5 4 4 4 Class Distribution -------------------- 45% | Mutant 22% | Hacker-Scout 11% | Scavenger-Skirmisher 8% | Scavenger-Mutant 8% | Skirmisher Dominant Class ---------------- Mutant | -10/Materials Mutant | -10/Mines Scavenger-Mutant | -9/Materials Mutant | -9/Mines Mutant | -9/Exiles Scavenger-Skirmisher | -8/Mines Skirmisher | -8/Materials Hacker-Scout | -7/Factory Hacker-Scout | -6/Factory Hacker-Scout | -5/Factory Hacker-Scout | -4/Factory Resources | -11 -10 -10 -9 -9 -9 -8 -8 -7 -6 -5 -4 ----------- Run | Yrd Mat Min Mat Min Exi Min Mat Fac Fac Fac Fac Matter Collected 2839 | 310 547 38 594 221 . 188 631 200 . 52 58 Remotely . | . . . . . . . . . . . . Salvage Created 3844 | 134 637 46 1093 264 . 134 1232 176 . 100 28 Parts 223 | 13 35 10 65 15 . 14 54 11 . 4 2 Haulers Intercepted 8 | . 2 . 4 . . . 2 . . . . Recyclers Shooed 3 | . . 1 2 . . . . . . . . Parts Field Recycled . | . . . . . . . . . . . . Retrieved Matter . | . . . . . . . . . . . . Parts Self-Destructed . | . . . . . . . . . . . . Prevented . | . . . . . . . . . . . . Kills | -11 -10 -10 -9 -9 -9 -8 -8 -7 -6 -5 -4 ------- Run | Yrd Mat Min Mat Min Exi Min Mat Fac Fac Fac Fac Combat Hostiles Destroyed 80 | . 12 5 14 9 . 9 21 6 . 4 . Melee 7 | . . . . . . . . 3 . 4 . Guns 44 | . 12 1 11 6 . 2 12 . . . . Cannons 3 | . . . 3 . . . . . . . . AOE 26 | . . 4 . 3 . 7 9 3 . . . Classes Destroyed 15 | 2 6 1 2 1 . 1 1 1 . . . Worker 1 | . 1 . . . . . . . . . . Builder 7 | . 1 1 2 1 . . 1 1 . . . Tunneler 5 | 3 . . . . . 1 1 . . . . Hauler 8 | . 2 . 4 . . . 2 . . . . Recycler 7 | 1 . . 3 . . . 3 . . . . Mechanic 2 | . . . 1 1 . . . . . . . Operator 3 | . 1 . 1 . . . . . . . 1 Watcher 6 | . 1 . 1 . . . 4 . . . . Swarmer 20 | . . 5 . . . 3 4 4 . 4 . Grunt 45 | . 12 . 11 5 . 5 12 . . . . Duelist 1 | . . . . . . . 1 . . . . Sentry 5 | . . . 3 . . . 2 . . . . Hunter 3 | . . . . . . 1 2 . . . . Programmer 2 | . . . . . . . . 2 . . . Assembled 4 | . . . . 4 . . . . . . . Thug 1 | . . . . 1 . . . . . . . Best Kill Streak 9 | 3 3 4 5 5 . 5 9 3 . 2 1 Combat Bots Only 7 | . 3 4 5 3 . 5 7 3 . 2 . Max Kills in Single Turn 4 | 1 1 3 2 4 . 2 4 1 . 1 1 Gunslinging 1 | . . . . . . . 1 . . . . Exploded 3 | . . 3 . 2 . 2 3 1 . . . Melee 1 | . . . . . . . . 1 . 1 . Uniques/NPCs Destroyed . | . . . . . . . . . . . . Combat | -11 -10 -10 -9 -9 -9 -8 -8 -7 -6 -5 -4 -------- Run | Yrd Mat Min Mat Min Exi Min Mat Fac Fac Fac Fac Hostile Shots Fired 620 | . 53 25 63 35 . 36 150 46 . 87 125 Missed 221 | . 7 4 22 7 . 15 45 17 . 44 60 Hits 399 | . 46 21 41 28 . 21 105 29 . 43 65 Melee 4 | . . . . . . . 3 . . . 1 Projectile 395 | . 46 21 41 28 . 21 102 29 . 43 64 AOE 4 | . . . . . . . . 1 . 3 . Critical Strikes 11 | . 2 . 2 . . 1 3 2 . . 1 Part Disruptions 1 | . . . . 1 . . . . . . . Damage Taken 7089 | . 594 182 543 724 . 337 1874 691 . 892 1252 Core 3010 | . 110 6 99 113 . 101 368 351 . 688 1174 Absorbed by Shields . | . . . . . . . . . . . . Core Remaining (%) 55 | 100 . 53 . . . 21 33 49 100 31 . Volleys Fired 275 | 11 67 13 61 21 . 14 84 4 . . . Largest 2 | 2 2 2 2 2 . 2 2 1 . . . Hottest 92 | 40 40 40 91 46 . 53 92 39 . . . Shots Fired 499 | 18 134 23 121 38 . 23 138 4 . . . Gun 452 | 18 134 21 99 35 . 16 129 . . . . Cannon 22 | . . . 22 . . . . . . . . Launcher 25 | . . 2 . 3 . 7 9 4 . . . Special . | . . . . . . . . . . . . Kinetic 425 | 18 134 21 99 35 . 16 102 . . . . Thermal 27 | . . . 22 . . . 5 . . . . Explosive 25 | . . 2 . 3 . 7 9 4 . . . Electromagnetic 22 | . . . . . . . 22 . . . . Robot Hit Streak 19 | 11 19 4 12 4 . 15 14 1 . . . Robot Miss Streak 5 | 1 4 2 2 3 . 1 5 2 . . . Penetration Max . | . . . . . . . . . . . . Secondary Targets 3 | . 1 . . . . . 2 . . . . Max Gunslinging Chain 1 | . 1 . . . . . 1 . . . . Shots Hit Robots 353 | 15 86 11 82 19 3 15 98 15 . 7 2 Core Hits 205 | 6 39 7 36 22 . 30 51 10 . 4 . Critical Kills 2 | . . . . . . . 2 . . . . Critical Parts Destroyed . | . . . . . . . . . . . . Critical Strikes 3 | . . . . . . . 2 1 . . . Destroy 2 | . . . . . . . 2 . . . . Sever 1 | . . . . . . . . 1 . . . Melee Attacks 59 | . . . . 5 3 . . 20 . 15 16 Impact 5 | . . . . 5 . . . . . . . Slashing 37 | . . . . . . . . 20 . 4 13 Piercing 14 | . . . . . . . . . . 11 3 Sneak Attacks 4 | . . . . . 3 . . 1 . . . Combat Hostiles . | . . . . . . . . . . . . Follow-up Attacks . | . . . . . . . . . . . . Damage Inflicted 8455 | 150 1174 291 1366 695 . 1030 2591 737 . 253 168 Guns 4318 | 150 1174 103 1011 299 . 142 1439 . . . . Cannons 355 | . . . 355 . . . . . . . . Explosions 2844 | . . 188 . 396 . 888 1128 244 . . . Melee 888 | . . . . . . . . 493 . 253 142 Ramming 50 | . . . . . . . 24 . . . 26 Kinetic 3896 | 150 1174 103 1011 299 . 142 1017 . . . . Thermal 672 | . . . 355 . . 197 120 . . . . Explosive 2584 | . . 188 . 396 . 691 1065 244 . . . Electromagnetic 365 | . . . . . . . 365 . . . . Impact . | . . . . . . . . . . . . Slashing 735 | . . . . . . . . 493 . 100 142 Piercing 153 | . . . . . . . . . . 153 . Highest Corruption 3 | . . . . . . . . 3 . . 1 Average Corruption 2 | . . . . . . . . 2 . . 1 Corruption Purged . | . . . . . . . . . . . . Corruption Blocked . | . . . . . . . . . . . . Effects 3 | . . . . . . . . 3 . . . Message Errors 1 | . . . . . . . . 1 . . . Parts Fused 1 | . . . . . . . . 1 . . . Data Loss (major) 1 | . . . . . . . . 1 . . . Overload Shots . | . . . . . . . . . . . . Overflow Damage 194 | . . . . . . 35 48 33 . 6 72 Projectiles . | . . . . . . . . . . . . Explosions 83 | . . . . . . 35 48 . . . . Melee 111 | . . . . . . . . 33 . 6 72 Knockbacks 1 | . . . . . . . . . . . 1 Impact 1 | . . . . . . . . . . . 1 Kinetic . | . . . . . . . . . . . . Secondary . | . . . . . . . . . . . . Self-Inflicted Damage 250 | . . 22 . 15 . 20 126 55 . . 12 Shots 6 | . . 1 . 1 . 1 2 1 . . . Rammed 7 | . . . . . . . 4 . . . 3 Targets Rammed 8 | . . . . . . . 5 . . . 3 Kicked . | . . . . . . . . . . . . Crushed 1 | . . . . . . . 1 . . . . Highest Temperature 288 | . 28 12 279 53 . 14 288 . . . . Average Temperature 56 | . 6 5 67 21 . 6 78 . . . . Received Heat Transfer 1934 | . 378 . 300 229 . 117 630 39 . 48 193 Effects 1 | . . . 1 . . . . . . . . Energy Bleed 1 | . . . 1 . . . . . . . . Siege Activations . | . . . . . . . . . . . . Martial Activations . | . . . . . . . . . . . . Shielding Activations . | . . . . . . . . . . . . Robots Disrupted . | . . . . . . . . . . . . Combat Hostiles . | . . . . . . . . . . . . Robots Corrupted . | . . . . . . . . . . . . Combat Hostiles . | . . . . . . . . . . . . Parts Fried 3 | . . . . . . . 3 . . . . Impact Corruptions . | . . . . . . . . . . . . Robots Melted . | . . . . . . . . . . . . Combat Hostiles . | . . . . . . . . . . . . Parts Melted . | . . . . . . . . . . . . Heat Transferred 1077 | . . . 629 . . 250 198 . . . . Parts Sabotaged . | . . . . . . . . . . . . Parts Stolen . | . . . . . . . . . . . . Parts Stripped . | . . . . . . . . . . . . Power Chain Reactions 1 | . . . . . . . 1 . . . . Alert | -11 -10 -10 -9 -9 -9 -8 -8 -7 -6 -5 -4 ------- Run | Yrd Mat Min Mat Min Exi Min Mat Fac Fac Fac Fac Maximum Alert Level 1 | . . . . . . 1 1 . . . . Low Security (%) 98 | 100 100 100 100 100 . 99 89 100 100 100 100 Level 1 1 | . . . . . . . 10 . . . . Level 2 . | . . . . . . . . . . . . Level 3 . | . . . . . . . . . . . . Level 4 . | . . . . . . . . . . . . Level 5 . | . . . . . . . . . . . . High Security . | . . . . . . . . . . . . Max Security . | . . . . . . . . . . . . Peak Influence 325 | 10 107 102 148 162 . 201 325 181 73 120 112 Initial 137 | . . . 35 . . . 29 137 65 25 . Average 46 | . 30 87 35 30 . 90 73 59 64 47 24 Influence Increases 3031 | 20 339 142 504 186 . 330 744 303 8 229 226 Destroy 0b10 Robot/C 1540 | . 240 100 280 120 . 180 420 120 . 80 . Destroy 0b10 Robot/NC 195 | 20 30 5 60 10 . 5 55 5 . . 5 Destroy Leader 368 | . 56 10 70 20 . 40 122 40 . 10 . Allied During Kill 5 | . . . . 5 . . . . . . . Successful Hack 71 | . 13 . 30 . . . 6 . 8 . 14 Disable Machine 150 | . . . . 15 . 60 60 15 . . . Destroy Structure 192 | . . 12 4 16 . 45 66 33 . 4 12 Partial Spotted 60 | . . . 15 . . . . . . 15 30 Lose Combat Pursuer 450 | . . 15 45 . . . 15 90 . 120 165 Influence Decreases 2956 | 20 339 50 596 89 97 254 517 473 88 282 151 Entered New Map 463 | . . . 57 . 97 . 47 166 68 28 . Time Decay 2091 | 20 329 40 367 79 . 244 340 267 20 244 141 Lost Part 266 | . 10 10 36 10 . 10 130 40 . 10 10 Purge Threat 136 | . . . 136 . . . . . . . . Squads Dispatched 25 | . 2 . 1 2 . . 5 5 . 3 7 Investigation 7 | . 1 . . . . . 2 2 . 1 1 Extermination 6 | . . . . . . . . 3 . 1 2 Reinforcement 10 | . 1 . 1 1 . . 2 . . 1 4 Assault 1 | . . . . 1 . . . . . . . Garrison 1 | . . . . . . . 1 . . . . Intercept . | . . . . . . . . . . . . Searches Triggered . | . . . . . . . . . . . . Construction Impeded 2 | . . . . 1 . . 1 . . . . Haulers Reinforced . | . . . . . . . . . . . . Active Scanning Responses . | . . . . . . . . . . . . Cargo Convoy Interrupts 1 | . . . . . . . . . . . 1 Stealth | -11 -10 -10 -9 -9 -9 -8 -8 -7 -6 -5 -4 --------- Run | Yrd Mat Min Mat Min Exi Min Mat Fac Fac Fac Fac Distress Signals 6 | . 1 . 1 . . . 4 . . . . Communications Jammed . | . . . . . . . . . . . . Distress Signals . | . . . . . . . . . . . . Times Spotted 188 | . 29 7 22 12 . 10 44 14 . 16 34 Peak Tracking Total 19 | . 5 4 5 4 . 6 9 6 . 4 19 Tactical Retreats 17 | . . 1 2 2 . . 1 2 . 5 4 Traps | -11 -10 -10 -9 -9 -9 -8 -8 -7 -6 -5 -4 ------- Run | Yrd Mat Min Mat Min Exi Min Mat Fac Fac Fac Fac Traps Triggered 6 | . . . . . . . 4 . . 1 1 Indirectly . | . . . . . . . . . . . . Trap Hack Attempts . | . . . . . . . . . . . . Triggered . | . . . . . . . . . . . . Disarmed . | . . . . . . . . . . . . Reprogrammed . | . . . . . . . . . . . . Reused . | . . . . . . . . . . . . Traps Extracted . | . . . . . . . . . . . . Installed . | . . . . . . . . . . . . Triggered . | . . . . . . . . . . . . Machines | -11 -10 -10 -9 -9 -9 -8 -8 -7 -6 -5 -4 ---------- Run | Yrd Mat Min Mat Min Exi Min Mat Fac Fac Fac Fac Machines Disabled 10 | . . . . 1 . 4 4 1 . . . Max in Single Turn 3 | . . . . 1 . 3 1 1 . . . Garrison Access 1 | . . . . . . . . 1 . . . Machines Repaired . | . . . . . . . . . . . . Machines Dismantled . | . . . . . . . . . . . . Machines Sabotaged . | . . . . . . . . . . . . Overloaded Fab Kills . | . . . . . . . . . . . . Hacking | -11 -10 -10 -9 -9 -9 -8 -8 -7 -6 -5 -4 --------- Run | Yrd Mat Min Mat Min Exi Min Mat Fac Fac Fac Fac Machines Accessed 33 | . 6 . 7 . 2 . 2 6 2 4 4 Terminals 21 | . 6 . 5 . . . 2 1 1 2 4 Fabricators 4 | . . . . . . . . 2 . 2 . Repair Stations . | . . . . . . . . . . . . Recycling Units 3 | . . . . . . . . 2 1 . . Scanalyzers 2 | . . . 2 . . . . . . . . Garrison Access 1 | . . . . . . . . 1 . . . Total Hacks 81 | . 18 . 16 . 5 . 5 9 4 11 13 Successful 33 | . 5 . 10 . 5 . 1 4 1 4 3 Failed 48 | . 13 . 6 . . . 4 5 3 7 10 Catastrophic 15 | . 2 . 1 . . . 2 1 . 2 7 Database Lockouts . | . . . . . . . . . . . . Manual 45 | . 16 . 10 . 1 . 5 1 1 3 8 Terminals 55 | . 18 . 11 . . . 5 1 2 5 13 Fabricators 11 | . . . . . . . . 5 . 6 . Repair Stations . | . . . . . . . . . . . . Recycling Units 4 | . . . . . . . . 2 2 . . Scanalyzers 5 | . . . 5 . . . . . . . . Garrison Access 1 | . . . . . . . . 1 . . . Terminal Hacks 20 | . 4 . 5 . 5 . . . 1 2 3 Record 6 | . . . . . 4 . . . 1 1 . Robot Analysis 1 | . 1 . . . . . . . . . . Branch Access Points 2 | . 1 . 1 . . . . . . . . Fabricator Index 1 | . . . 1 . . . . . . . . Alert Level 2 | . . . 1 . . . . . . 1 . Unreport Threat 1 | . . . 1 . . . . . . . . Locate Traps 1 | . . . . . . . . . . . 1 Hauler Manifests 2 | . 1 . 1 . . . . . . . . Zone Layout 3 | . 1 . . . . . . . . . 2 Proto ID Catalog 1 | . . . . . 1 . . . . . . Fabricator Hacks 5 | . . . . . . . . 3 . 2 . Load Schematic 4 | . . . . . . . . 2 . 2 . Build 1 | . . . . . . . . 1 . . . Repair Station Hacks . | . . . . . . . . . . . . Recycling Unit Hacks . | . . . . . . . . . . . . Scanalyzer 4 | . . . 4 . . . . . . . . Insert Component 2 | . . . 2 . . . . . . . . Analyze 2 | . . . 2 . . . . . . . . Garrison Access Hacks 1 | . . . . . . . . 1 . . . Seal Access 1 | . . . . . . . . 1 . . . Unauthorized Hacks 3 | . 1 . 1 . . . 1 . . . . Terminals 3 | . 1 . 1 . . . 1 . . . . Operators 3 | . 1 . 1 . . . 1 . . . . Fabricators . | . . . . . . . . . . . . Repair Stations . | . . . . . . . . . . . . Recycling Units . | . . . . . . . . . . . . Scanalyzers . | . . . . . . . . . . . . Garrison Access . | . . . . . . . . . . . . Data Cores Recovered . | . . . . . . . . . . . . Used . | . . . . . . . . . . . . Hacking Detections 26 | . 6 . 5 . . . 2 3 2 4 4 Full Trace Events 6 | . 3 . . . . . . 2 . . 1 Feedback Events . | . . . . . . . . . . . . Feedback Blocked . | . . . . . . . . . . . . Robot Schematics Acquired . | . . . . . . . . . . . . Robots Built . | . . . . . . . . . . . . Authchips . | . . . . . . . . . . . . Time . | . . . . . . . . . . . . Total Robot Build Rating . | . . . . . . . . . . . . Part Schematics Acquired 2 | . . . 2 . . . . . . . . Parts Built 1 | . . . . . . . . 1 . . . Authchips . | . . . . . . . . . . . . Time 73 | . . . . . . . . 73 . . . Total Part Build Rating 3 | . . . . . . . . 3 . . . Parts Repaired . | . . . . . . . . . . . . Time . | . . . . . . . . . . . . Parts Recycled . | . . . . . . . . . . . . Recycled Matter . | . . . . . . . . . . . . Retrieved Matter . | . . . . . . . . . . . . Retrieved Components . | . . . . . . . . . . . . Parts Scanalyzed 2 | . . . 2 . . . . . . . . Part Schematics Acquired 2 | . . . 2 . . . . . . . . Parts Damaged 1 | . . . 1 . . . . . . . . Bothacking | -11 -10 -10 -9 -9 -9 -8 -8 -7 -6 -5 -4 ------------ Run | Yrd Mat Min Mat Min Exi Min Mat Fac Fac Fac Fac Used RIF Installer . | . . . . . . . . . . . . Robots Hacked 3 | . . . . . 3 . . . . . . Non-combat 2 | . . . . . 2 . . . . . . Combat 1 | . . . . . 1 . . . . . . Robot Hacks Applied 3 | . . . . . 3 . . . . . . parse_system 3 | . . . . . 3 . . . . . . Relay Couplers Released . | . . . . . . . . . . . . Fabnet Peak Effective % . | . . . . . . . . . . . . Robots Rewired . | . . . . . . . . . . . . Allies Hacked . | . . . . . . . . . . . . Hacks Repelled . | . . . . . . . . . . . . Allies | -11 -10 -10 -9 -9 -9 -8 -8 -7 -6 -5 -4 -------- Run | Yrd Mat Min Mat Min Exi Min Mat Fac Fac Fac Fac Total Allies 1 | . . . . 1 . . . . . . . Largest Group 1 | . . . . 1 . . . . . . . Highest-Rated Group 31 | . . . . 31 . . . . . . . Highest-Rated Ally 31 | . . . . 31 . . . . . . . Total Orders . | . . . . . . . . . . . . Ally Attacks 6 | . . . . 6 . . . . . . . Total Damage 84 | . . . . 84 . . . . . . . Kills 1 | . . . . 1 . . . . . . . Allies Corrupted . | . . . . . . . . . . . . Allies Melted . | . . . . . . . . . . . . Intel | -11 -10 -10 -9 -9 -9 -8 -8 -7 -6 -5 -4 ------- Run | Yrd Mat Min Mat Min Exi Min Mat Fac Fac Fac Fac Active Infowar (turns) 7485 | 19 560 . 1396 1066 392 578 1279 1006 45 643 501 Terrain 808 | . . . . . . 434 374 . . . . Seismic 579 | 19 560 . . . . . . . . . . T.N.C. 6906 | . . . 1396 1066 392 578 1279 1006 45 643 501 Robot Analysis Total 1 | . 1 . . . . . . . . . . Derelict Logs Recovered 1 | . . . . 1 . . . . . . . Drone Launches . | . . . . . . . . . . . . Drone Recoveries . | . . . . . . . . . . . . Exploration | -11 -10 -10 -9 -9 -9 -8 -8 -7 -6 -5 -4 ------------- Run | Yrd Mat Min Mat Min Exi Min Mat Fac Fac Fac Fac Turns Passed 8545 | 172 1154 82 1398 1066 392 578 1279 1006 45 643 730 Spaces Moved 5837 | 82 553 25 671 556 241 296 562 1109 146 903 693 Core 387 | 3 . . . . . . . . . 140 244 Treads 2982 | 79 553 25 671 556 241 296 561 . . . . Legs . | . . . . . . . . . . . . Wheels . | . . . . . . . . . . . . Hover . | . . . . . . . . . . . . Flight 2468 | . . . . . . . 1 1109 146 763 449 Fastest Speed 27 | 50 160 160 160 160 160 160 30 27 30 30 32 Average Speed 100 | 155 160 188 166 161 160 160 163 28 30 35 49 Slowest Speed 240 | 160 160 240 240 240 160 160 240 30 30 50 100 Overloaded Moves . | . . . . . . . . . . . . Propulsion Burnouts . | . . . . . . . . . . . . Robots Hopped 7 | . . . . . . . . 1 . 6 . Potential Cave-ins 7 | . . . . . . . . . . . 7 Cave-ins Triggered 1 | . . . . 1 . . . . . . . Exploration Rate (%) 40 | 5 90 10 40 95 60 67 49 25 5 27 17 Regions Visited 11 Branch Regions 4 Pre-discovered Areas 1 | . . . . . 1 . . . . . . Known Exits Taken 2 | . 1 . 1 . . . . . . . . Unknown Exits Taken 9 | 1 . 1 . 1 1 1 1 1 1 1 . Scrap Searched 2 | . . . . 1 . 1 . . . . . Spaces Dug 33 | . . . . 4 . . . 13 . 2 14 Terrain Destroyed 255 | . . 13 . 29 . 49 79 69 . 2 14 Melee 20 | . . . . 4 . . . . . 2 14 Projectile . | . . . . . . . . . . . . AOE 235 | . . 13 . 25 . 49 79 69 . . . Terrain Rammed . | . . . . . . . . . . . . Walls Destroyed . | . . . . . . . . . . . . Machines Disabled . | . . . . . . . . . . . . Actions | -11 -10 -10 -9 -9 -9 -8 -8 -7 -6 -5 -4 --------- Run | Yrd Mat Min Mat Min Exi Min Mat Fac Fac Fac Fac Total 7898 | 106 695 39 835 674 246 375 774 1756 146 1194 1058 Wait 1538 | . 40 . 55 84 . 56 74 614 . 279 336 Move 5813 | 81 552 24 670 555 240 295 561 1106 145 891 693 Hop 6 | . . . . . . . . 1 . 5 . Pick Up 60 | 7 18 . 15 1 . 2 12 4 . . 1 Fast Attach 38 | 7 . . 6 . 1 1 11 5 . 4 3 Attach 31 | . 1 1 8 1 . 2 14 1 1 . 2 Detach 5 | . . . 1 . 1 . . 1 . . 2 Swap 24 | . 4 1 3 6 1 5 4 . . . . Drop 41 | . 13 . 16 1 . . 9 . . . 2 Fire 275 | 11 67 13 61 21 . 14 84 4 . . . Melee 59 | . . . . 5 3 . . 20 . 15 16 Ram 3 | . . . . . . . . . . . 3 Kick . | . . . . . . . . . . . . Crush 5 | . . . . . . . 5 . . . . Escape Stasis . | . . . . . . . . . . . . Rewire . | . . . . . . . . . . . . Trap . | . . . . . . . . . . . . Miscellaneous . | . . . . . . . . . . . . Route ------- -11/Scrapyard -10/Materials (discovered 4 exits: *Mat x3 / *Min) -10/Mines -9/Materials (discovered 3 exits: *Min x2 / *Sto) -9/Mines (discovered 3 exits: *Mat x2 / *Exi) -9/Exiles (discovered 2 exits: [*Min x2]) -8/Mines -8/Materials (discovered 2 exits: *Fac x2) -7/Factory -6/Factory -5/Factory -4/Factory History --------- Turn | Location | Event 8 | -11/Scrapyard | Discovered new exit (range 15) 173 | -11/Scrapyard | Entered Materials 317 | -10/Materials | Build established: Mutant 420 | -10/Materials | Discovered new exit (range 4) 617 | -10/Materials | Discovered new exit (range 4) 1031 | -10/Materials | Discovered new exit (range 13) 1120 | -10/Materials | Identified exit to Mines 1327 | -10/Materials | Entered Mines 1392 | -10/Mines | Discovered new exit (range 8) 1409 | -10/Mines | Entered Materials 1409 | -9/Materials | Evolved 2 slots: Utility x2 1412 | -9/Materials | Discovered new exit (range 8) 1890 | -9/Materials | Build established: Scavenger-Mutant 2105 | -9/Materials | Identified exit to Mines 2105 | -9/Materials | Identified exit to Storage 2646 | -9/Materials | Build established: Mutant 2807 | -9/Materials | Entered Mines 2808 | -9/Mines | Met a Derelict bent on vengeance 3013 | -9/Mines | Assembled infested the area 3018 | -9/Mines | Assisted by a Guerilla fighting off Assembled 3117 | -9/Mines | Crushed by falling debris 3378 | -9/Mines | Discovered new exit (range 9) 3460 | -9/Mines | Discovered new exit (range 13) 3571 | -9/Mines | Met a Derelict testing a Signal Generator 3609 | -9/Mines | Core integrity fell below 50% 3865 | -9/Mines | Deemed a non-threat by the Exiles lab entrance 3866 | -9/Mines | Discovered new exit (range 5) 3873 | -9/Mines | Entered Exiles 3896 | -9/Exiles | Discovered new exit (range 15) 3921 | -9/Exiles | Met 8R-AWN 3949 | -9/Exiles | Met EX-HEX 4035 | -9/Exiles | Met EX-BIN 4056 | -9/Exiles | Aligned with FarCom system 4058 | -9/Exiles | Given EX-Vault access code 4096 | -9/Exiles | Opened EX-Vault 4104 | -9/Exiles | Found Modified TNC 4137 | -9/Exiles | Warned to stay clear of 0b10 Research branches 4187 | -9/Exiles | Met EX-DEC 4197 | -9/Exiles | Learned location of Zion (-6) 4248 | -9/Exiles | Discovered new exit (range 14) 4265 | -9/Exiles | Left Exiles lab with Modified TNC 4265 | -9/Exiles | Entered Mines 4563 | -8/Mines | Build established: Scavenger-Skirmisher 4651 | -8/Mines | Discovered new exit (range 15) 4843 | -8/Mines | Entered Materials 4843 | -8/Materials | Evolved 2 slots: Propulsion x1, Utility x1 5252 | -8/Materials | Lost 3 parts (1n2u) 5387 | -8/Materials | Discovered new exit (range 5) 5393 | -8/Materials | Garrison activated, responded to threat 5758 | -8/Materials | Build established: Skirmisher 5905 | -8/Materials | Discovered new exit (range 15) 5986 | -8/Materials | Core integrity fell below 50% 6027 | -8/Materials | Lost 6 parts (3n1u2w) 6030 | -8/Materials | Destroyed 7 combat bots 6122 | -8/Materials | Entered Factory 6122 | -7/Factory | Evolved 2 slots: Propulsion x2 6449 | -7/Factory | Build established: Hacker-Scout 6807 | -7/Factory | Lost 3 parts (1p1n1w) 7025 | -7/Factory | Fabricated Hacking Suite? 7115 | -7/Factory | Core integrity fell below 50% 7124 | -7/Factory | Discovered new exit (range 14) 7128 | -7/Factory | Entered another Factory area 7128 | -6/Factory | Evolved 2 slots: Utility x2 7161 | -6/Factory | Discovered new exit (range 13) 7173 | -6/Factory | Entered another Factory area 7173 | -5/Factory | Evolved 2 slots: Power x1, Utility x1 7328 | -5/Factory | Lost 4 parts (1p2n1w) 7413 | -5/Factory | Core integrity fell below 50% 7813 | -5/Factory | Discovered new exit (range 9) 7816 | -5/Factory | Entered another Factory area 7816 | -4/Factory | Evolved 2 slots: Utility x2 8317 | -4/Factory | Released all parts (5) 8529 | -4/Factory | Spotted Executioner 8530 | -4/Factory | Cargo convoy interrupted 8534 | -4/Factory | Core integrity fell below 50% 8541 | -4/Factory | Core integrity fell below 20% 8541 | -4/Factory | Released all parts (1) 8546 | -4/Factory | Destroyed by A-27 Freighter with PD Laser Last Messages --------------- 08538_ Penetrated by Slug. 08538_ Hacking Suite destroyed. 08538_ Penetrated by Slug. 08538_ K-01 Serf collects debris. 08541_ Released Vibroblade. 08541_ K-01 Serf collects debris. 08541_ P-70 Sage resets S-27 Virus, system corruption cleaned. 08543_ P-70 Sage resets X-72 Disruptor, system corruption cleaned. 08545_ Triggered Ambush Trap. 08545_ B-60 Warrior emerges from a hatch in the floor. 08545_ S-27 Virus emerges from a hatch in the floor. 08545_ Knocked back. 08545_ Penetrated by Slug. 08545_ Slug penetrates Manufacturing Mainframe. 08545_ Manufacturing Mainframe disabled. [Achievement: Back For More] Map ----- +----------------------------------------------------+ | ?????????????????????????????????????????????????? | | ?????????????????????????????????????????????????? | | ?????????????????????????????????????????????????? | | ?????????????????????????????????????????????????? | | ?????????????????????????????????????????????????? | | ?????????????????????????????????????????????????? | | ?????????????????????????????????????????????????? | | ?????????????????????????????????????????????????? | | ???????????????????? ????????????????????????? | | ???????????????????# #???????????????????????? | | ???????????????????# #???????????????????????? | | ???????????????????# #???????????????????????? | | ????????? ????????# #???????????????????????? | | ??? T" #???????# +???????????????????????? | | ??? "" #???????# #???????????????????????? | | ""?" " #???????# #???????????????????????? | | %""""%" #???????# #???????????????????????? | | "" " #???????# #???????????????????????? | | #??????## #???????????????????????? | | "" #??????+ u #???????????????????????? | | "" #???????# #???????????????????????? | | """ x #???????# #?######????????????????? | | """ #???????# bss #? """"????????????????? | | "" ###+##### # """"????????????????? | | s h i # """" !#?????????????? | | s @ "" #?????????????? | | =E! # !#?????????????? | | p / A # ! ! #?????????????? | | #? +?????????????? | | ###"###/######;##### #? #?????????????? | | ## ????? ##???# #??+#######?????????????? | | ## "????"" ?????# ?????????????????????? | | ## "???""" ?????# ???????o???????????? | | ## "???""" ?????# ??????????????????? | | ## ?? ?????# ?????????????????? | | ## ""??""" ?????# ?????????????????? | | ## """?""? ??????######## ?????????????????? | | ## ""???"? ?????????????? ?????????????????? | | ## ????? ??????????????? ??????????????????? | | # ????? ????????????????????????????????????? | | # ????? ????????????????????????????????????? | | # ! ????? ?????????????????????????????????????? | | #####???????????????????????????????????????????? | | #???????????????????????????????????????????????? | | #???????????????????????????????????????????????? | | #???????????????????????????????????????????????? | | #???????????????????????????????????????????????? | | #???????????????????????????????????????????????? | | #???????????????????????????????????????????????? | | #???????????????????????????????????????????????? | +----------------------------------------------------+ Best States ------------- Heat Dissipation 43 Energy Generation 18 Energy Capacity 310 Matter Stores 300 Matter Capacity 300 Sight Range 16 Terrain Scan Range 16 Terrain Scan Density 10 Armor Coverage 375 Evasion (%) 64 Recoil Reduction 3 Offensive Hacking 20 Defensive Hacking 24 Item Schematics ----------------- Imp. Flight Unit | -9/Materials | Scanalyzed Hacking Suite | -9/Materials | Scanalyzed Robot Schematics ------------------ None Fabricated ------------ Hacking Suite | x1 | -7/Factory Repaired ---------- Nothing Alien Tech Used ----------------- None Achievements -------------- Back For More Challenges ------------ None Game ------ Seed MagneticSpreadDetector Manual? 0 Play Time 01:13:34 Cumulative 29.0 hours Start 2025.08.19 @ 02:34:55 End 2025.08.19 @ 22:08:08 Sessions 2 Manual Loads 0 Difficulty Rogue Special Mode None Game No. 50 Rogue 50 Adventurer 0 Explorer 0 Win Type - Total 0 Types 0/0/0/0/0/0/0/0/0/0 Lore% 32 Gallery% 31 Achievement% 28 Wizard Run 0 Options --------- Layout 1 ASCII 0 Keyboard 0 Movement Numpad Keybinds 0 Fullscreen 1 Font 24/Smallcaps Map View 50x35 Zoom Use 0% Tactical HUD 1 Map Filters NONE Filters NONE Steam 1 RUN: 3f1d1ef7-2abc-458b-95f7-338b9951fc46